lending/lending_fUSD_20241007
["ID","MTS","AMOUNT","RATE_DAILY","PERIOD"]
[340007089,1728324646823,-612.172,0.00035322,2]
[340007090,1728324646833,-449.0,0.00035322,2]
[340007091,1728324646842,-1297.0,0.00035322,2]
[340007092,1728324646851,-154.81,0.00035523,2]
[340007093,1728324646861,-150.0,0.00035523,2]
[340007094,1728324646871,-150.0,0.00035523,2]
[340007095,1728324646880,-150.0,0.00035523,2]
[340007096,1728324646889,-150.0,0.00035523,2]
[340007097,1728324646899,-150.0,0.00035523,2]
[340007098,1728324646908,-150.0,0.00035523,2]
[340007099,1728324646917,-150.0,0.00035523,2]
[340007100,1728324646926,-150.0,0.00035523,2]
[340007101,1728324646936,-150.0,0.00035523,2]
[340007102,1728324646945,-460.34,0.00035552,2]
[340007103,1728324646954,-500.0,0.00035616,7]
[340007104,1728324646963,-500.0,0.00035616,7]
[340007105,1728324646973,-1011.69,0.00035616,2]
[340007106,1728324646983,-151.44,0.00035616,120]
[340007107,1728324646992,-213.04288,0.00035657,7]
[340007108,1728324647001,-51571.0,0.00035657,2]
[340007109,1728324647010,-1796.63,0.000358,14]
[340007110,1728324647020,-200.59,0.00035855,2]
[340007111,1728324647029,-663.1518679,0.0003587,2]
[340007112,1728324647038,-629.60604553,0.0003587,2]
[340007113,1728324647048,-513.46523699,0.0003589,7]
[340007114,1728324647057,-505.84718052,0.0003589,7]
[340007115,1728324647066,-152.0,0.00035905,3]
[340007116,1728324647075,-400.0,0.0003597,2]
[340007117,1728324647085,-50000.0,0.00036,26]
[340007118,1728324647094,-50000.0,0.00036,36]
[340007119,1728324647104,-9054.44748384,0.00036025,5]
[340007120,1728324647113,-205.0,0.0003611,2]
[340007121,1728324647123,-162.3,0.00036164,2]
[340007122,1728324647132,-158.9,0.00036164,120]
[340007123,1728324647142,-618.98,0.00036266,2]
[340007124,1728324647151,-150.0,0.00036513,120]
[340007125,1728324647160,-717.05,0.00036603,2]
[340007126,1728324647169,-150.0,0.00036603,2]
[340007127,1728324647179,-150.0,0.00036603,2]
[340007128,1728324647189,-37334.52134122,0.000368,60]
[340007129,1728324647198,-151.0,0.000368,7]
[340007130,1728324647207,-170.745589,0.000368,7]
[340007131,1728324647216,-151.0,0.000368,7]
[340007132,1728324647226,-507.585199,0.0003692,120]
[340007133,1728324647236,-500.0,0.0003692,120]
[340007134,1728324647245,-200.0,0.0003692,120]
[340007135,1728324647254,-400.0,0.0003697,2]
[340007136,1728324647263,-400.0,0.0003697,2]
[340007137,1728324647272,-150.0,0.00036986,2]
[340007138,1728324647280,-150.0,0.00036986,2]
[340007139,1728324647289,-150.0,0.00036986,2]
[340007140,1728324647298,-150.0,0.00036986,2]
[340007141,1728324647307,-50000.0,0.00037,27]
[340007142,1728324647316,-50000.0,0.00037,37]
[340007143,1728324647326,-524.46753909,0.00037,120]
[340007144,1728324647335,-900.0,0.00037,2]
[340007145,1728324647344,-151.0,0.00037,7]
[340007146,1728324647353,-922.512935,0.00037,7]
[340007147,1728324647361,-922.512935,0.00037,7]
[340007148,1728324647370,-10000.0,0.00037,7]
[340007149,1728324647379,-10000.0,0.00037,7]
[340007150,1728324647388,-7805.80704409,0.00037,7]
[340007151,1728324647650,-212.38,0.00034,2]
[340007152,1728324647660,-2194.19295591,0.00037,7]
[340007153,1728324647669,-93.72704409,0.00037,7]
[340007154,1728324647693,-212.38,0.00034,2]
[340007155,1728324647702,-794.43561408,0.00037,7]
[340007156,1728324647718,-212.38,0.00034,2]
[340007157,1728324647729,-1037.01078683,0.00037,7]
[340007158,1728324647738,-557.92919317,0.00037,7]
[340007159,1728324648141,-150.0,0.0002008,2]
[340007160,1728324648151,-150.0,0.00020082,2]
[340007161,1728324648161,-205.59763767,0.00020102,2]
[340007162,1728324648171,-150.0,0.0002011,2]
[340007163,1728324648181,-150.0,0.00020123,2]
[340007164,1728324648192,-150.0,0.00020133,2]
[340007165,1728324648201,-150.0,0.00020147,2]
[340007166,1728324648212,-150.0,0.00020153,2]
[340007167,1728324648221,-150.0,0.00020155,2]
[340007168,1728324648231,-150.0,0.00020165,2]
[340007169,1728324648241,-150.0,0.00020177,2]
[340007170,1728324648251,-150.0,0.00020178,2]
[340007171,1728324648261,-150.0,0.0002018,2]
[340007172,1728324648270,-150.0,0.00020181,2]
[340007173,1728324648280,-150.0,0.00020193,2]
[340007174,1728324648289,-150.0,0.00020193,2]
[340007175,1728324648298,-150.0,0.000202,2]
[340007176,1728324648307,-150.0,0.00020208,2]
[340007177,1728324648316,-150.0,0.00020209,2]
[340007178,1728324648326,-8.74251991,0.00020209,2]
[340007179,1728324648423,-150.0,0.00020096,2]
[340007180,1728324648433,-150.0,0.0002019,2]
[340007181,1728324648442,-141.25748009,0.00020209,2]
[340007182,1728324648452,-150.0,0.00020212,2]
[340007183,1728324648461,-150.0,0.00020217,2]
[340007184,1728324648474,-150.0,0.0002022,2]
[340007185,1728324648487,-150.0,0.0002022,2]
[340007186,1728324648503,-150.0,0.00020233,2]
[340007187,1728324648512,-150.0,0.0002024,2]
[340007188,1728324648522,-150.0,0.00020261,2]
[340007189,1728324648532,-150.0,0.00020265,2]
[340007190,1728324648541,-150.0,0.00020272,2]
[340007191,1728324648551,-150.0,0.00020273,2]
[340007192,1728324648561,-150.0,0.00020285,2]
[340007193,1728324648571,-150.0,0.00020291,2]
[340007194,1728324648658,-150.0,0.00020291,2]
[340007195,1728324648668,-150.0,0.00020292,2]
[340007196,1728324648680,-150.0,0.00020305,2]
[340007197,1728324648690,-150.0,0.00020308,2]
[340007198,1728324648699,-150.0,0.00020309,2]
[340007199,1728324648709,-150.0,0.0002031,2]
[340007200,1728324648719,-150.0,0.00020313,2]
[340007201,1728324648728,-150.0,0.00020315,2]
[340007202,1728324648738,-150.0,0.00020319,2]
[340007203,1728324648748,-150.0,0.00020344,2]
[340007204,1728324648758,-150.0,0.00020349,2]
[340007205,1728324648768,-150.0,0.00020349,2]
[340007206,1728324648777,-150.0,0.0002035,2]
[340007207,1728324648787,-212.38,0.00034,2]
[340007208,1728324648796,-212.38,0.00034,2]
[340007209,1728324648806,-212.38,0.00034,2]
[340007210,1728324648815,-212.38,0.00034,2]
[340007211,1728324648825,-212.38,0.00034,2]
[340007212,1728324648835,-212.38,0.00034,2]
[340007213,1728324648844,-212.38,0.00034,2]
[340007214,1728324648854,-212.38,0.00034,2]
[340007215,1728324648864,-212.38,0.00034,2]
[340007216,1728324648873,-212.38,0.00034,2]
[340007217,1728324648883,-212.38,0.00034,2]
[340007218,1728324648892,-212.38,0.00034,2]
[340007219,1728324648902,-212.38,0.00034,2]
[340007220,1728324648911,-212.38,0.00034,2]
[340007221,1728324648921,-212.38,0.00034,2]
[340007222,1728324648930,-212.38,0.00034,2]
[340007223,1728324648940,-212.38,0.00034,2]
[340007224,1728324648950,-212.38,0.00034,2]
[340007225,1728324648959,-212.38,0.00034,2]
[340007226,1728324648968,-212.38,0.00034,2]
[340007227,1728324648980,-212.38,0.00034,2]
[340007228,1728324648989,-212.38,0.00034,2]
[340007229,1728324648998,-212.38,0.00034,2]
[340007230,1728324649008,-212.38,0.00034,2]
[340007231,1728324649017,-212.38,0.00034,2]
[340007232,1728324649027,-1367.24425183,0.00037,7]
[340007233,1728324649037,-151.0,0.00037,7]
[340007234,1728324649046,-205.0,0.0003708,2]
[340007235,1728324649055,-150.0,0.0003711,120]
[340007236,1728324649065,-500.0,0.00037172,3]
[340007237,1728324649074,-500.0,0.00037181,3]
[340007238,1728324649084,-500.0,0.0003719,3]
[340007239,1728324649093,-500.0,0.00037198,3]
[340007240,1728324649102,-500.0,0.00037207,3]
[340007241,1728324649111,-500.0,0.00037216,3]
[340007242,1728324649120,-500.0,0.00037225,3]
[340007243,1728324649130,-500.0,0.00037234,3]
[340007244,1728324649139,-500.0,0.00037242,3]
[340007245,1728324649149,-150.0,0.00037251,120]
[340007246,1728324649158,-500.0,0.00037251,3]
[340007247,1728324649167,-273.78365397,0.0003726,3]
[340007248,1728324649176,-1672.63569466,0.0003726,2]
[340007249,1728324649185,-500.0,0.0003726,3]
[340007250,1728324649195,-500.0,0.0003726,3]
[340007251,1728324649203,-400.0,0.0003747,2]
[340007252,1728324649212,-400.0,0.0003747,2]
[340007253,1728324649221,-500.0,0.0003749,3]
[340007254,1728324649230,-220.47,0.00037491,2]
[340007255,1728324649241,-500.0,0.00037499,3]
[340007256,1728324649250,-500.0,0.00037508,3]
[340007257,1728324649260,-500.0,0.00037516,3]
[340007258,1728324649269,-500.0,0.00037525,3]
[340007259,1728324649278,-500.0,0.00037534,3]
[340007260,1728324649287,-450.172,0.00037718,49]
[340007261,1728324649296,-460.34,0.00037816,2]
[340007262,1728324649306,-257.85955092,0.000379,2]
[340007263,1728324649315,-95397.487743,0.00037974,2]
[340007264,1728324649324,-25153.57263207,0.00038,28]
[340007265,1728324649786,-150.0,0.00020094,2]
[340007266,1728324649795,-150.0,0.00020111,2]
[340007267,1728324649804,-150.0,0.00020119,2]
[340007268,1728324649814,-150.0,0.00020122,2]
[340007269,1728324649824,-150.0,0.00020135,2]
[340007270,1728324649833,-150.0,0.00020153,2]
[340007271,1728324649842,-150.0,0.00020156,2]
[340007272,1728324649852,-150.0,0.00020165,2]
[340007273,1728324649861,-150.0,0.0002017,2]
[340007274,1728324649870,-150.0,0.0002018,2]
[340007275,1728324649879,-150.0,0.00020184,2]
[340007276,1728324649888,-150.0,0.00020206,2]
[340007277,1728324649898,-150.0,0.00020212,2]
[340007278,1728324649907,-150.0,0.00020214,2]
[340007279,1728324649916,-150.0,0.00020245,2]
[340007280,1728324649925,-150.0,0.00020246,2]
[340007281,1728324649934,-150.0,0.00020273,2]
[340007282,1728324649944,-150.0,0.00020276,2]
[340007283,1728324649954,-150.0,0.00020281,2]
[340007284,1728324649963,-150.0,0.00020284,2]
[340007285,1728324649972,-150.0,0.00020291,2]
[340007286,1728324649982,-150.0,0.00020299,2]
[340007287,1728324649991,-150.0,0.00020333,2]
[340007288,1728324650000,-150.0,0.00020333,2]
[340007289,1728324650009,-150.0,0.00020342,2]
[340007290,1728324650019,-150.0,0.00020344,2]
[340007291,1728324650028,-537.0,0.00020353,2]
[340007292,1728324650037,-150.0,0.00022569,2]
[340007293,1728324650046,-150.0,0.00022587,2]
[340007294,1728324650055,-150.0,0.00022588,2]
[340007295,1728324650064,-150.0,0.00022647,2]
[340007296,1728324650074,-150.0,0.00022653,2]
[340007297,1728324650083,-150.0,0.00022664,2]
[340007298,1728324650092,-150.0,0.00022701,2]
[340007299,1728324650101,-150.0,0.0002271,2]
[340007300,1728324650111,-150.0,0.00022738,2]
[340007301,1728324650120,-150.0,0.00022756,2]
[340007302,1728324650129,-150.0,0.00022756,2]
[340007303,1728324650138,-150.0,0.00022806,2]
[340007304,1728324650147,-150.0,0.00024777,2]
[340007305,1728324650157,-150.0,0.00024778,2]
[340007306,1728324650166,-150.0,0.00024792,2]
[340007307,1728324650175,-150.0,0.00024794,2]
[340007308,1728324650185,-150.0,0.00024804,2]
[340007309,1728324650194,-150.0,0.00024992,2]
[340007310,1728324650203,-150.0,0.00025028,2]
[340007311,1728324650212,-150.0,0.00030959,2]
[340007312,1728324650222,-8148.47100606,0.00032833,15]
[340007313,1728324650231,-423.61,0.00033205,2]
[340007314,1728324650240,-24846.42736793,0.00038,28]
[340007315,1728324650249,-1245.83245149,0.00038,38]
[340007316,1728324759482,-36272.9649,0.000107,2]
[340007317,1728324759508,-13727.0351,0.000107,2]
[340007318,1728324761558,-40576.5823,0.000107,2]
[340007319,1728324761582,-1000.0,0.000107,2]
[340007320,1728324761606,-2500.0,0.000107,2]
[340007321,1728324761629,-250.0,0.00011,2]
[340007322,1728324786618,5673.4177,0.000107,2]
[340007323,1728325530031,762.24895185,0.000101,2]
[340007324,1728325555168,444.73917368,6.94e-05,2]
[340007325,1728325640824,246.2163496,0.000101,2]
[340007326,1728325648363,400.0,0.000103,3]
[340007327,1728325650540,800.0,0.000104,3]
[340007328,1728325652783,1200.0,0.000105,3]
[340007329,1728325654799,1600.0,0.000106,3]
[340007330,1728325656924,2000.0,0.000107,3]
[340007331,1728325659038,400.0,0.000108,3]
[340007332,1728325661180,400.0,0.000109,3]
[340007333,1728325675964,150.0,0.0001,2]
[340007334,1728325714386,212.0328826,0.0001,2]
[340007409,1728325832094,-615.11,0.000107,2]
[340007411,1728325832106,-6676.2044,0.000107,2]
[340007413,1728325832115,-10190.28010724,0.000107,2]
[340007414,1728325832126,-179.27909921,0.000109,2]
[340007415,1728325832135,-162.25906343,0.000109,2]
[340007416,1728325832145,-2645.82612789,0.000109,2]
[340007417,1728325832154,-4470.86043432,0.000109,2]
[340007418,1728325832164,-643.51528927,0.000109,2]
[340007419,1728325832173,-173.36,0.00010959,2]
[340007420,1728325832184,-164.27,0.00010959,2]
[340007421,1728325832194,-620.24944524,0.00010997,2]
[340007422,1728325832203,-476.60728425,0.00010999,2]
[340007423,1728325832212,-500.0,0.00010999,2]
[340007424,1728325832221,-158.89716813,0.00010999,2]
[340007425,1728325832231,-93063.7223866,0.00011,2]
[340007426,1728325832242,-635.7826,0.00011,2]
[340007427,1728325832321,-306.93007346,0.00011,2]
[340007428,1728325832332,-1622.9909464,0.00011,2]
[340007455,1728325838071,-327.698,0.00011,2]
[340007456,1728325838251,-9807.8,0.00011,2]
[340007457,1728325838263,-2001.0,0.00011,2]
[340007458,1728325838275,-30710.50000001,0.00011,2]
[340007459,1728325838286,-615.615,0.00011,2]
[340007460,1728325838310,-536146.41930045,0.00011,2]
[340007461,1728325838322,-693.29470197,0.00011,2]
[340007462,1728325838333,-1323.31540208,0.00011,2]
[340007584,1728325840024,-8257.1865332,0.000109,2]
[340007585,1728325840036,-7143.4197668,0.000109,2]
[340007586,1728325840045,-17561.51853635,0.00011,2]
[340007587,1728325840056,-3422.0802614,0.00011,2]
[340007588,1728325840067,-4786.36046934,0.00011,2]
[340007589,1728325840078,-3198.49104601,0.00011,2]
[340007590,1728325840090,-4617.91216045,0.00011,2]
[340007591,1728325840101,-1844.94999997,0.00011,2]
[340007592,1728325840112,-509.58713245,0.00011,2]
[340007593,1728325840339,-353.59275053,0.00011,2]
[340007594,1728325840350,-222819.70531603,0.00011,2]
[340007595,1728325840361,-615.21,0.00011,2]
[340007596,1728325840372,-320.91406874,0.00011,2]
[340007597,1728325840383,-1015.75187423,0.00011,2]
[340007598,1728325840394,-639.318,0.00011,2]
[340007599,1728325840412,-835.71347657,0.00011,2]
[340007600,1728325840426,-295.2679983,0.00011,2]
[340007601,1728325840441,-223993.97608023,0.00011,2]
[340007602,1728325840452,-158400.56681728,0.00011,2]
[340007603,1728325840462,-153676.5733211,0.00011,2]
[340007604,1728325840473,-6206.0,0.00011,2]
[340007605,1728325840484,-1736.41306025,0.00011,2]
[340007606,1728325840494,-3162.60000008,0.00011,2]
[340007607,1728325840505,-2447.98619997,0.00011,2]
[340007608,1728325840516,-2616.92533353,0.00011,2]
[340007609,1728325840526,-760.74789201,0.00011,2]
[340007610,1728325840537,-6699.04999996,0.00011,2]
[340007611,1728325840547,-17773.46864637,0.00011,2]
[340007612,1728325840558,-9117.20490943,0.00011,2]
[340007613,1728325840569,-616.39115643,0.00011,2]
[340007614,1728325840580,-45000.0,0.00011,2]
[340007615,1728325840591,-560.0563458,0.00011,2]
[340007618,1728325840629,-6367.9,0.00011,2]
[340007620,1728325840640,-1545.81007291,0.00011,2]
[340007621,1728325840655,-237719.24075092,0.00011,2]
[340007622,1728325840665,-2268.5,0.00011,2]
[340007623,1728325840677,-14980.65288637,0.00011,2]
[340007624,1728325840698,-250.0,0.00010959,2]
[340007625,1728325840707,-6.62236691,0.00011,2]
[340007626,1728325840718,-2408.76417884,0.00011,2]
[340007648,1728325842980,-204.26026468,0.00010999,2]
[340007650,1728325842990,-30529.60598059,0.00011,2]
[340007651,1728325843016,-642.94,0.00011,2]
[340007652,1728325843029,-5008.545,0.00011,2]
[340007653,1728325843197,-1839.99,0.00011,2]
[340007654,1728325843214,-13580.98996485,0.00011,2]
[340007655,1728325843226,-46218.06484184,0.00011,2]
[340007656,1728325843269,-6156.95080001,0.00011,2]
[340007657,1728325843281,-446.39999929,0.00011,2]
[340007658,1728325843371,-2498.76,0.00011,2]
[340007667,1728325845945,-3386.27557811,0.000109,2]
[340007668,1728325845954,-1390.15217798,0.00011,2]
[340007676,1728325846088,-9701.4000668,0.00011,2]
[340007677,1728325846100,-1589.71720656,0.00011,2]
[340007678,1728325846111,-366.3703831,0.00011,2]
[340007681,1728325846122,-355.01686225,0.00011,2]
[340007687,1728325846185,-316.64999999,0.00011,2]
[340007689,1728325846197,-922.77,0.00011,2]
[340007690,1728325846208,-21084.52601043,0.00011,2]
[340007691,1728325846279,-16214.5208,0.00011,2]
[340007692,1728325846290,-677.92352343,0.00011,2]
[340007989,1728326816320,256.62,8.568e-05,2]
[340008000,1728326886965,182.12,8.297e-05,2]
[340008001,1728326921620,150.0,0.000135,3]
[340008005,1728326971976,16910.40331732,0.00010069,2]
[340008006,1728326972003,6989.59668268,0.00010069,2]
[340008007,1728326980245,229.43,0.00010069,2]
[340008018,1728327032157,-154.57,0.00010371,2]
[340008019,1728327032167,-154.57,0.00010378,2]
[340008020,1728327032176,-154.57,0.00010385,2]
[340008021,1728327032185,-154.57,0.00010393,2]
[340008022,1728327032195,-154.57,0.000104,2]
[340008023,1728327032203,-154.57,0.00010408,2]
[340008024,1728327032212,-154.57,0.00010415,2]
[340008025,1728327032221,-154.57,0.00010422,2]
[340008026,1728327032231,-638.86835547,0.0001079,2]
[340008027,1728327032242,-2258.95474453,0.0001079,2]
[340008028,1728327032251,-658.0173,0.000108,2]
[340008029,1728327032260,-340.0657,0.000108,2]
[340008030,1728327032269,-256.62,0.00010832,2]
[340008031,1728327032279,-415.89700425,0.00010873,2]
[340008032,1728327032376,-2144.08249487,0.0001089,2]
[340008033,1728327032385,-5696.66662168,0.00010899,2]
[340008034,1728327032395,-150.0,0.00010899,2]
[340008035,1728327032404,-31576.883,0.000109,2]
[340008036,1728327032417,-40923.8637,0.000109,2]
[340008037,1728327032427,-1000.0,0.000109,2]
[340008038,1728327032436,-905.3344,0.000109,2]
[340008039,1728327032446,-157.46953596,0.000109,2]
[340008040,1728327032457,-365.1225,0.000109,2]
[340008041,1728327032467,-7058.0264,0.000109,2]
[340008042,1728327032476,-475.5344,0.000109,2]
[340008043,1728327032486,-226.0818,0.000109,2]
[340008044,1728327032495,-158.59352518,0.000109,2]
[340008045,1728327032504,-31573.6408,0.000109,2]
[340008046,1728327032513,-117838.52327018,0.000109,2]
[340008048,1728327032524,-7929.82408757,0.000109,2]
[340008050,1728327032535,-3871.03754225,0.000109,2]
[340008052,1728327032544,-205.47280902,0.000109,2]
[340008053,1728327032552,-168.14858647,0.000109,2]
[340008055,1728327032562,-179.27909922,0.000109,2]
[340008056,1728327032571,-873.23078847,0.000109,2]
[340008057,1728327032583,-142.79117457,0.000109,2]
[340008058,1728327032595,-57.89953423,0.000109,2]
[340008059,1728327032605,-563.07587812,0.000109,2]
[340008060,1728327032614,-88.75703219,0.00010958,2]
[340008061,1728327032626,-411.24296781,0.00010958,2]
[340008062,1728327032635,-500.0,0.00010958,2]
[340008064,1728327032644,-500.0,0.00010958,2]
[340008065,1728327032652,-500.0,0.00010958,2]
[340008066,1728327032661,-500.0,0.00010958,2]
[340008068,1728327032670,-337.415803,0.00010958,2]
[340008070,1728327032679,-500.0,0.00010958,2]
[340008071,1728327032687,-500.0,0.00010958,2]
[340008073,1728327032696,-192.36882357,0.00010958,2]
[340008075,1728327032707,-307.63117643,0.00010958,2]
[340008076,1728327032716,-142.40589657,0.00010958,2]
[340008077,1728327032727,-357.59410343,0.00010958,2]
[340008078,1728327032736,-500.0,0.00010958,2]
[340008079,1728327032745,-500.0,0.00010958,2]
[340008080,1728327032754,-500.0,0.00010958,2]
[340008081,1728327032763,-500.0,0.00010958,2]
[340008082,1728327032771,-500.0,0.00010958,2]
[340008083,1728327032781,-500.0,0.00010958,2]
[340008084,1728327032790,-193.74196938,0.00010958,2]
[340008085,1728327032798,-528.52070039,0.00010958,2]
[340008086,1728327032808,-500.0,0.00010958,2]
[340008087,1728327032817,-500.0,0.00010958,2]
[340008088,1728327032825,-500.0,0.00010958,2]
[340008089,1728327032835,-500.0,0.00010958,2]
[340008090,1728327032844,-500.0,0.00010958,2]
[340008091,1728327032856,-500.0,0.00010958,2]
[340008092,1728327032865,-499.99999999,0.00010958,2]
[340008093,1728327032875,-178.0,0.00010959,2]
[340008094,1728327032884,-250.0,0.00010959,2]
[340008095,1728327032893,-4079.03,0.00010959,2]
[340008096,1728327032902,-225.97,0.00010959,2]
[340008097,1728327032912,-188.31,0.00010959,2]
[340008098,1728327032921,-156.92,0.00010959,2]
[340008099,1728327032930,-500.0,0.00010959,2]
[340008100,1728327032939,-784.64,0.00010959,2]
[340008101,1728327032948,-162.68,0.00010959,2]
[340008102,1728327032957,-500.0,0.00010973,2]
[340008103,1728327032966,-999.99,0.0001099,2]
[340008104,1728327032975,-387.07,0.0001099,2]
[340008105,1728327032984,-196.88204439,0.0001099,2]
[340008106,1728327032992,-196.88204439,0.0001099,2]
[340008107,1728327033001,-196.88204439,0.0001099,2]
[340008108,1728327033010,-121450.37325288,0.00010994,2]
[340008109,1728327033022,-17578.32732118,0.00010994,2]
[340008110,1728327033033,-1554.11028528,0.00010994,2]
[340008111,1728327033048,-595.83432079,0.00010994,2]
[340008112,1728327033067,-332.96,0.000108,2]
[340008113,1728327033076,-849.41724129,0.00010994,2]
[340008114,1728327033088,-297.99594133,0.00010994,2]
[340008115,1728327033102,-2586.06677235,0.00010994,2]
[340008116,1728327033114,-33561.5132099,0.00010994,2]
[340008117,1728327033130,-1212.3396512,0.00010997,2]
[340008118,1728327033140,-1000.0,0.00010999,2]
[340008119,1728327033149,-1730.43,0.00010999,2]
[340008120,1728327033160,-36835.0879489,0.00011,2]
[340008121,1728327033181,-388.88750137,0.00011,2]
[340008122,1728327033194,-3101.3403,0.00011,2]
[340008123,1728327033206,-3099.91875805,0.00011,2]
[340008124,1728327033219,-368.7704374,0.00011,2]
[340008125,1728327033231,-3358.39627723,0.00011,2]
[340008126,1728327033242,-397.92779334,0.00011,2]
[340008127,1728327033254,-1649.09184316,0.00011,2]
[340008128,1728327033266,-2175.883476,0.00011,2]
[340008129,1728327033281,-4250.50142563,0.00011,2]
[340008130,1728327033293,-8679.35967242,0.00011,2]
[340008131,1728327033304,-21585.86360883,0.00011,2]
[340008132,1728327033316,-92802.51460242,0.00011,2]
[340008133,1728327033327,-2375.16069498,0.00011,2]
[340008134,1728327033339,-2455.52727664,0.00011,2]
[340008135,1728327033350,-4598.57609927,0.00011,2]
[340008136,1728327033361,-6674.23832769,0.00011,2]
[340008137,1728327033373,-4796.58478385,0.00011,2]
[340008138,1728327033384,-2631.5279132,0.00011,2]
[340008139,1728327033395,-478.59396333,0.00011,2]
[340008140,1728327033408,-3078.55932045,0.00011,2]
[340008141,1728327033420,-719.4241955,0.00011,2]
[340008142,1728327033431,-1074.32,0.00011,2]
[340008143,1728327033443,-1117.22136038,0.00011,2]
[340008144,1728327033455,-365.35210606,0.00011,2]
[340008145,1728327033467,-261.15578167,0.00011,2]
[340008146,1728327033479,-517.85068696,0.00011,2]
[340008147,1728327033496,-3569.7731183,0.00011,2]
[340008148,1728327033508,-545.44642781,0.00011,2]
[340008149,1728327035547,579.77,0.00010097,2]
[340008152,1728327038166,-150.0,0.0001089,2]
[340008154,1728327038176,-618.50295108,0.00011,2]
[340008155,1728327038189,-32234.58733742,0.00011,2]
[340008156,1728327038200,-46225.58393827,0.00011,2]
[340008157,1728327038211,-897836.26946636,0.00011,2]
[340008158,1728327038223,-1128.24841438,0.00011,2]
[340008159,1728327038233,-3742.70217563,0.00011,2]
[340008160,1728327038245,-1058034.74025835,0.00011,2]
[340008161,1728327038297,-1517.50982453,0.00011,2]
[340008162,1728327038308,-280.407,0.00011,2]
[340008163,1728327038319,-567.03784519,0.00011,2]
[340008164,1728327038331,-1600.0,0.00011,2]
[340008165,1728327038342,-1101.02903969,0.00011,2]
[340008166,1728327038364,-1041.74426598,0.00011,2]
[340008167,1728327038375,-10441.17998013,0.00011,2]
[340008168,1728327038387,-524923.62939643,0.00011,2]
[340008169,1728327038399,-3525.86554151,0.00011,2]
[340008170,1728327038413,-7082.35051429,0.00011,2]
[340008171,1728327038424,-6218.1991,0.00011,2]
[340008172,1728327038439,-500.0,0.00011,2]
[340008173,1728327038451,-527.28417027,0.00011,2]
[340008174,1728327038467,-1586.04561394,0.00011,2]
[340008175,1728327038480,-51634.86,0.00011,2]
[340008176,1728327038491,-5999.42878763,0.00011,2]
[340008177,1728327038502,-6904.82972179,0.00011,2]
[340008178,1728327038513,-201668.69949492,0.00011,2]
[340008179,1728327038524,-486.44742134,0.00011,2]
[340008180,1728327038535,-632.85,0.00011,2]
[340008181,1728327038547,-301.11415239,0.00011,2]
[340008182,1728327038558,-2111.13867946,0.00011,2]
[340008183,1728327038571,-1833.36838384,0.00011,2]
[340008184,1728327038587,-21049.79701956,0.00011,2]
[340008185,1728327038598,-26139.36932887,0.00011,2]
[340008186,1728327038614,-5979.78453988,0.00011,2]
[340008187,1728327038626,-575.30635287,0.00011,2]
[340008188,1728327038637,-675.54813812,0.00011,2]
[340008189,1728327038648,-1759.48135128,0.00011,2]
[340008190,1728327038659,-2212.02777319,0.00011,2]